fUST/lending_fUST_20260101
["ID","MTS","AMOUNT","RATE_DAILY","PERIOD"]
[400211774,1767198641237,-2049.15890006,0.00022191,2]
[400211775,1767198641246,-500.0,0.00022191,2]
[400211776,1767198641255,-2983.45,0.00022191,2]
[400211777,1767198641265,-500.0,0.00022191,2]
[400211778,1767198641274,-501.92749062,0.00022191,2]
[400211779,1767198641283,-1089.48,0.00022191,2]
[400211780,1767198641293,-313.75261794,0.00022191,2]
[400211781,1767198641302,-9696.43,0.00022191,2]
[400211782,1767198641311,-500.0,0.00022191,2]
[400211783,1767198641321,-500.0,0.00022191,2]
[400211784,1767198641330,-500.0,0.00022191,2]
[400211785,1767198641339,-2098.98,0.00022191,2]
[400211786,1767198641348,-500.0,0.00022191,2]
[400211787,1767198641358,-500.0,0.00022191,2]
[400211788,1767198641367,-500.0,0.00022191,2]
[400211789,1767198641376,-151.0,0.00022248,2]
[400211790,1767198641386,-1364.0,0.0002246,2]
[400211791,1767198641395,-627.0,0.0002246,2]
[400211792,1767198641404,-2156.0,0.0002246,2]
[400211793,1767198641414,-150.0,0.0002246,2]
[400211794,1767198641424,-416.0,0.0002246,2]
[400211795,1767198641433,-416.0,0.0002246,2]
[400211796,1767198641443,-217.22,0.00022465,2]
[400211797,1767198641453,-500.0,0.00022465,2]
[400211798,1767198641462,-1323.99,0.00022465,2]
[400211799,1767198641471,-683.53,0.00022465,2]
[400211800,1767198641481,-2561.12075965,0.00022465,2]
[400211801,1767198641493,-500.0,0.00022465,2]
[400211802,1767198641503,-2983.45,0.00022465,2]
[400211803,1767198641513,-500.0,0.00022465,2]
[400211804,1767198641522,-1089.48,0.00022465,2]
[400211805,1767198641533,-9696.43,0.00022465,2]
[400211806,1767198641542,-500.0,0.00022465,2]
[400211807,1767198641552,-500.0,0.00022465,2]
[400211808,1767198641562,-624.92,0.00022465,2]
[400211809,1767198641572,-2098.98,0.00022465,2]
[400211810,1767198641581,-465.09067796,0.00022465,2]
[400211811,1767198641591,-500.0,0.00022465,2]
[400211812,1767198641600,-500.0,0.00022465,2]
[400211813,1767198641610,-500.0,0.00022739,2]
[400211814,1767198641619,-1323.99,0.00022739,2]
[400211815,1767198641628,-683.53,0.00022739,2]
[400211816,1767198641638,-500.0,0.00022739,2]
[400211817,1767198641647,-2983.45,0.00022739,2]
[400211818,1767198641657,-500.0,0.00022739,2]
[400211819,1767198641667,-1089.48,0.00022739,2]
[400211820,1767198641676,-9696.43,0.00022739,2]
[400211821,1767198641686,-500.0,0.00022739,2]
[400211822,1767198641695,-500.0,0.00022739,2]
[400211823,1767198641704,-2098.98,0.00022739,2]
[400211824,1767198641713,-500.0,0.00022739,2]
[400211825,1767198641722,-500.0,0.00022739,2]
[400211826,1767198641731,-872912.67968728,0.0002277,2]
[400211827,1767198641740,-778.66254772,0.0002287,2]
[400211828,1767198641750,-8028.51183462,0.00023,2]
[400211829,1767198641759,-149999.999999,0.00023,2]
[400211830,1767198641769,-500000.000001,0.00023,30]
[400211831,1767198641778,-500.0,0.00023013,2]
[400211832,1767198641788,-1323.99,0.00023013,2]
[400211833,1767198641797,-683.53,0.00023013,2]
[400211834,1767198641806,-500.0,0.00023013,2]
[400211835,1767198641815,-2983.45,0.00023013,2]
[400211836,1767198641825,-500.0,0.00023013,2]
[400211837,1767198641834,-1089.48,0.00023013,2]
[400211838,1767198641843,-9696.43,0.00023013,2]
[400211840,1767198641853,-545.7550806,0.00023013,2]
[400211841,1767198641861,-500.0,0.00023013,2]
[400211843,1767198641870,-2098.98,0.00023013,2]
[400211844,1767198641880,-500.0,0.00023013,2]
[400211846,1767198641891,-517.2474778,0.00023013,2]
[400211847,1767198641901,-334.09559887,0.00023017,2]
[400211848,1767198641910,-584.55,0.00023121,2]
[400211850,1767198641919,-334.09559887,0.00023155,9]
[400211852,1767198641928,-500.0,0.00023287,2]
[400211854,1767198641937,-1323.99,0.00023287,2]
[400211856,1767198641948,-683.53,0.00023287,2]
[400211857,1767198641957,-500.0,0.00023287,2]
[400211859,1767198641967,-2983.45,0.00023287,2]
[400211861,1767198641977,-500.0,0.00023287,2]
[400211862,1767198641986,-1089.48,0.00023287,2]
[400211863,1767198641996,-9696.43,0.00023287,2]
[400211864,1767198642005,-500.0,0.00023287,2]
[400211865,1767198642014,-2098.98,0.00023287,2]
[400211866,1767198642024,-203.39114107,0.00023287,2]
[400211867,1767198642033,-334.09559887,0.00023293,17]
[400211868,1767198642042,-855.85292071,0.00023422,2]
[400211869,1767198642051,-334.09559887,0.00023432,25]
[400211870,1767198642060,-500.0,0.00023561,2]
[400211871,1767198642070,-1323.99,0.00023561,2]
[400211872,1767198642080,-683.53,0.00023561,2]
[400211873,1767198642089,-500.0,0.00023561,2]
[400211874,1767198642098,-2983.45,0.00023561,2]
[400211875,1767198642108,-500.0,0.00023561,2]
[400211876,1767198642117,-1089.48,0.00023561,2]
[400211877,1767198642126,-9696.43,0.00023561,2]
[400211878,1767198642135,-500.0,0.00023561,2]
[400211879,1767198642147,-2098.98,0.00023561,2]
[400211880,1767198642156,-334.09559887,0.0002357,32]
[400211881,1767198642166,-666.02250795,0.00023649,2]
[400211882,1767198642175,-334.09559887,0.00023709,40]
[400211883,1767198642184,-1080.36507781,0.00023718,2]
[400211884,1767198642193,-2000.0,0.00023801,7]
[400211885,1767198642203,-500.0,0.00023835,2]
[400211886,1767198642212,-1323.99,0.00023835,2]
[400211887,1767198642222,-200.90977335,0.00023835,2]
[400211888,1767198642231,-683.53,0.00023835,2]
[400211889,1767198642240,-500.0,0.00023835,2]
[400211890,1767198642249,-2983.45,0.00023835,2]
[400211891,1767198642259,-500.0,0.00023835,2]
[400211892,1767198642269,-1089.48,0.00023835,2]
[400211893,1767198642279,-9696.43,0.00023835,2]
[400211894,1767198642288,-500.0,0.00023835,2]
[400211895,1767198642297,-2098.98,0.00023835,2]
[400211896,1767198642307,-334.09559887,0.00023847,48]
[400211897,1767198642316,-705.18345983,0.000239,2]
[400211898,1767198642326,-705.18345977,0.000239,2]
[400211899,1767198642335,-705.18345977,0.000239,2]
[400211900,1767198642344,-705.18345977,0.000239,2]
[400211901,1767198642354,-705.18345977,0.000239,2]
[400211902,1767198642362,-705.18345977,0.000239,2]
[400211903,1767198642372,-705.18345977,0.000239,2]
[400211904,1767198642382,-705.18345977,0.000239,2]
[400211905,1767198642391,-705.18345977,0.000239,2]
[400211906,1767198642400,-150.0,0.00023978,30]
[400211907,1767198642409,-334.09559887,0.00023986,56]
[400211908,1767198642419,-1041.66666667,0.00024,7]
[400211909,1767198642428,-1733.59881032,0.00024,2]
[400211910,1767198642437,-465.14283166,0.00024,2]
[400211911,1767198642448,-1038.33,0.000241,14]
[400211912,1767198642457,-10762.96,0.000241,2]
[400211913,1767198642467,-500.0,0.00024109,2]
[400211914,1767198642476,-1323.99,0.00024109,2]
[400211915,1767198642487,-683.53,0.00024109,2]
[400211916,1767198642497,-500.0,0.00024109,2]
[400211917,1767198642507,-2983.45,0.00024109,2]
[400211918,1767198642516,-574.21869989,0.00024109,2]
[400211919,1767198642526,-1089.48,0.00024109,2]
[400211920,1767198642535,-9696.43,0.00024109,2]
[400211921,1767198642545,-500.0,0.00024109,2]
[400211922,1767198642554,-2098.98,0.00024109,2]
[400211923,1767198642565,-334.09559887,0.00024124,63]
[400211924,1767198642575,-151.0,0.00024142,2]
[400211925,1767198642584,-91463.92439064,0.00024142,2]
[400211926,1767198642593,-334.09559887,0.00024263,71]
[400211927,1767198642603,-500.0,0.00024383,2]
[400211928,1767198642612,-1323.99,0.00024383,2]
[400211929,1767198642621,-683.53,0.00024383,2]
[400211930,1767198642631,-500.0,0.00024383,2]
[400211931,1767198642640,-2983.45,0.00024383,2]
[400211932,1767198642649,-1089.48,0.00024383,2]
[400211933,1767198642658,-9696.43,0.00024383,2]
[400211934,1767198642668,-254.06268095,0.00024383,2]
[400211935,1767198642677,-2098.98,0.00024383,2]
[400211936,1767198642686,-334.09559887,0.00024401,79]
[400211937,1767198642695,-208.62,0.000245,7]
[400211938,1767198642704,-334.09559887,0.0002454,86]
[400211939,1767198642714,-117106.37508465,0.0002465,2]
[400211940,1767198642723,-513.6105239,0.0002465,2]
[400211941,1767198642732,-151.0,0.0002465,2]
[400211942,1767198642741,-151.0,0.0002465,2]
[400211943,1767198642751,-500.0,0.00024657,2]
[400211944,1767198642760,-1323.99,0.00024657,2]
[400211945,1767198642769,-683.53,0.00024657,2]
[400211946,1767198642779,-500.0,0.00024657,2]
[400211947,1767198642788,-2983.45,0.00024657,2]
[400211948,1767198642797,-1089.48,0.00024657,2]
[400211949,1767198642806,-9696.43,0.00024657,2]
[400211950,1767198642816,-2098.98,0.00024657,2]
[400211951,1767198642825,-150.0,0.00024658,2]
[400211952,1767198642834,-380.0,0.00024658,2]
[400211953,1767198642843,-150.0,0.00024658,2]
[400211954,1767198642853,-334.09559887,0.00024678,94]
[400211955,1767198642861,-161.83602163,0.00024716,2]
[400211956,1767198642871,-240.56,0.000248,2]
[400211957,1767198642880,-334.09559887,0.00024816,102]
[400211958,1767198642889,-705.18345977,0.00024831,2]
[400211959,1767198642898,-371114.733813,0.000249,2]
[400211960,1767198642907,-500.0,0.00024931,2]
[400211961,1767198642917,-1323.99,0.00024931,2]
[400211962,1767198642926,-683.53,0.00024931,2]
[400211963,1767198642935,-500.0,0.00024931,2]
[400211964,1767198642944,-2983.45,0.00024931,2]
[400211965,1767198642953,-1089.48,0.00024931,2]
[400211966,1767198642962,-9696.43,0.00024931,2]
[400211967,1767198642971,-2098.98,0.00024931,2]
[400211968,1767198642981,-334.09559887,0.00024955,110]
[400211969,1767198642990,-10392.29269205,0.00025,2]
[400211970,1767198642999,-30414.50219373,0.00025,15]
[400211971,1767198643009,-1041.66666667,0.00025,30]
[400211972,1767198643018,-579.57875916,0.000252,5]
[400211973,1767198643028,-500.0,0.00025205,2]
[400211974,1767198643037,-1323.99,0.00025205,2]
[400211975,1767198643046,-683.53,0.00025205,2]
[400211976,1767198643056,-500.0,0.00025205,2]
[400211977,1767198643065,-2983.45,0.00025205,2]
[400211978,1767198643075,-1089.48,0.00025205,2]
[400211979,1767198643084,-9696.43,0.00025205,2]
[400211980,1767198643093,-2098.98,0.00025205,2]
[400211981,1767198643102,-151.50509152,0.00025205,2]
[400211982,1767198643111,-1364.0,0.0002546,2]
[400211983,1767198643120,-627.0,0.0002546,2]
[400211984,1767198643130,-2156.0,0.0002546,2]
[400211985,1767198643139,-150.0,0.0002546,2]
[400211986,1767198643148,-416.0,0.0002546,2]
[400211987,1767198643157,-416.0,0.0002546,2]
[400211988,1767198643167,-900.0,0.00025469,3]
[400211989,1767198643177,-500.0,0.00025479,2]
[400211990,1767198643186,-1323.99,0.00025479,2]
[400211991,1767198643196,-683.53,0.00025479,2]
[400211992,1767198643205,-500.0,0.00025479,2]
[400211993,1767198643214,-2983.45,0.00025479,2]
[400211995,1767198643224,-1089.48,0.00025479,2]
[400211996,1767198643233,-9696.43,0.00025479,2]
[400211997,1767198643241,-2098.98,0.00025479,2]
[400211998,1767198643250,-182262.81340394,0.000255,7]
[400211999,1767198643259,-1000.0,0.000255,2]
[400212000,1767198643268,-1041.66666667,0.000255,7]
[400212001,1767198643276,-151.0,0.000255,7]
[400212002,1767198643286,-723.65907114,0.00025649,2]
[400212003,1767198643295,-422.36,0.00025753,2]
[400212004,1767198643304,-1323.99,0.00025753,2]
[400212005,1767198643314,-683.53,0.00025753,2]
[400212006,1767198643323,-192.92,0.00025753,2]
[400212007,1767198643333,-2983.45,0.00025753,2]
[400212008,1767198643342,-1089.48,0.00025753,2]
[400212010,1767198643351,-9696.43,0.00025753,2]
[400212011,1767198643360,-2098.98,0.00025753,2]
[400212012,1767198643370,-150.0,0.00025823,30]
[400212013,1767198643379,-288.1810171,0.00025918,18]
[400212014,1767198643390,-39750.25710912,0.00026,10]
[400212015,1767198643400,-1041.66666667,0.00026,10]
[400212016,1767198643409,-529.34920278,0.00026,2]
[400212017,1767198643419,-45213.6821685,0.00026,30]
[400212018,1767198643428,-19489.81,0.00026,2]
[400212019,1767198643437,-161.0,0.00026,5]
[400212020,1767198643446,-1323.99,0.00026027,2]
[400212021,1767198643456,-683.53,0.00026027,2]
[400212022,1767198643466,-2983.45,0.00026027,2]
[400212023,1767198643475,-1089.48,0.00026027,2]
[400212024,1767198643487,-9696.43,0.00026027,2]
[400212025,1767198643498,-2098.98,0.00026027,2]
[400212026,1767198643507,-151.0,0.00026036,2]
[400212027,1767198643517,-1323.99,0.00026301,2]
[400212028,1767198643527,-683.53,0.00026301,2]
[400212029,1767198643537,-2983.45,0.00026301,2]
[400212030,1767198643546,-1089.48,0.00026301,2]
[400212031,1767198643555,-9696.43,0.00026301,2]
[400212032,1767198643565,-2098.98,0.00026301,2]
[400212033,1767198643575,-855.85292071,0.0002646,2]
[400212034,1767198643585,-1323.99,0.00026575,2]
[400212035,1767198643594,-683.53,0.00026575,2]
[400212036,1767198643604,-2983.45,0.00026575,2]
[400212037,1767198643614,-1089.48,0.00026575,2]
[400212038,1767198643623,-9696.43,0.00026575,2]
[400212039,1767198643632,-2098.98,0.00026575,2]
[400212040,1767198643643,-5000.0,0.00026621,2]
[400212041,1767198643653,-6464.62555377,0.0002669,10]
[400212042,1767198643663,-5000.0,0.0002669,6]
[400212043,1767198643672,-5000.0,0.0002669,7]
[400212044,1767198643681,-5000.0,0.0002669,9]
[400212045,1767198643691,-5000.0,0.0002669,12]
[400212046,1767198643701,-1038.33,0.000267,14]
[400212047,1767198643711,-10762.96,0.000267,2]
[400212048,1767198643721,-1323.99,0.00026849,2]
[400212049,1767198643730,-683.53,0.00026849,2]
[400212050,1767198643740,-2983.45,0.00026849,2]
[400212051,1767198643749,-1089.48,0.00026849,2]
[400212052,1767198643759,-9696.43,0.00026849,2]
[400212053,1767198643768,-2098.98,0.00026849,2]
[400212054,1767198643778,-151.0,0.00026849,7]
[400212055,1767198643788,-151.0,0.00026849,7]
[400212056,1767198643797,-2000.0,0.00027041,7]
[400212057,1767198643807,-1323.99,0.00027123,2]
[400212058,1767198643817,-683.53,0.00027123,2]
[400212059,1767198643826,-2983.45,0.00027123,2]
[400212060,1767198643836,-1089.48,0.00027123,2]
[400212061,1767198643845,-9696.43,0.00027123,2]
[400212062,1767198643855,-2098.98,0.00027123,2]
[400212063,1767198643864,-12667.999999,0.0002739,2]
[400212064,1767198643874,-568.83559814,0.0002739,7]
[400212065,1767198643883,-150.0,0.0002739,2]
[400212066,1767198643895,-1323.99,0.00027397,2]
[400212067,1767198643904,-683.53,0.00027397,2]
[400212068,1767198643913,-2983.45,0.00027397,2]
[400212069,1767198643922,-1089.48,0.00027397,2]
[400212070,1767198643932,-9696.43,0.00027397,2]
[400212071,1767198643941,-2098.98,0.00027397,2]
[400212072,1767198644063,-299.0,0.00027397,2]
[400212073,1767198644073,-299.0,0.00027397,2]
[400212074,1767198644083,-299.0,0.00027397,2]
[400212075,1767198644093,-299.0,0.00027397,2]
[400212076,1767198644102,-299.0,0.00027397,2]
[400212077,1767198644112,-299.0,0.00027397,2]
[400212078,1767198644121,-299.0,0.00027397,2]
[400212079,1767198644131,-299.0,0.00027397,2]
[400212080,1767198644140,-299.0,0.00027397,2]
[400212081,1767198644149,-299.0,0.00027397,2]
[400212082,1767198644158,-299.0,0.00027397,2]
[400212083,1767198644168,-299.0,0.00027397,2]
[400212084,1767198644177,-299.0,0.00027397,2]
[400212085,1767198644186,-299.0,0.00027397,2]
[400212086,1767198644197,-299.0,0.00027397,2]
[400212087,1767198644206,-299.0,0.00027397,2]
[400212088,1767198644215,-299.0,0.00027397,2]
[400212089,1767198644224,-299.0,0.00027397,2]
[400212090,1767198644234,-299.0,0.00027397,2]
[400212091,1767198644244,-299.0,0.00027397,2]
[400212092,1767198644254,-299.0,0.00027397,2]
[400212093,1767198644264,-151.0,0.00027397,7]
[400212094,1767198644273,-151.0,0.00027397,7]
[400212095,1767198644283,-151.0,0.00027397,7]
[400212096,1767198644292,-151.0,0.00027397,7]
[400212097,1767198644302,-151.0,0.00027397,7]
[400212098,1767198644311,-151.0,0.00027397,7]
[400212099,1767198644321,-299.0,0.00027397,2]
[400212100,1767198644330,-299.0,0.00027397,2]
[400212101,1767198644339,-299.0,0.00027397,2]
[400212102,1767198644349,-299.0,0.00027397,2]
[400212103,1767198644359,-299.0,0.00027397,2]
[400212104,1767198644368,-299.0,0.00027397,2]
[400212105,1767198644377,-151.0,0.00027397,7]
[400212106,1767198644387,-151.0,0.00027397,7]
[400212107,1767198644397,-160.429789,0.00027397,7]
[400212108,1767198644406,-151.0,0.00027397,7]
[400212109,1767198644415,-151.0,0.00027397,7]
[400212110,1767198644425,-151.0,0.00027397,7]
[400212111,1767198644434,-195.753576,0.00027397,7]
[400212112,1767198644444,-151.0,0.00027397,7]
[400212113,1767198644453,-151.0,0.00027397,7]
[400212116,1767198644463,-151.0,0.00027397,7]
[400212118,1767198644472,-151.0,0.00027397,7]
[400212119,1767198644482,-151.0,0.00027397,7]
[400212120,1767198644494,-151.0,0.00027397,7]
[400212121,1767198644504,-151.0,0.00027397,7]
[400212123,1767198644514,-151.0,0.00027397,7]
[400212124,1767198644523,-514.72487,0.00027397,7]
[400212126,1767198644534,-514.72487,0.00027397,7]
[400212128,1767198644543,-514.72487,0.00027397,7]
[400212130,1767198644552,-514.72487,0.00027397,7]
[400212131,1767198644562,-514.72487,0.00027397,7]
[400212132,1767198644572,-514.72487,0.00027397,7]
[400212133,1767198644582,-2077.549415,0.00027397,7]
[400212134,1767198644592,-2077.549415,0.00027397,7]
[400212137,1767198644602,-514.72487,0.00027397,7]
[400212139,1767198644611,-514.72487,0.00027397,7]
[400212141,1767198644620,-2077.549415,0.00027397,7]
[400212142,1767198644630,-2077.549415,0.00027397,7]
[400212144,1767198644639,-2077.549415,0.00027397,7]
[400212146,1767198644648,-2077.549415,0.00027397,7]
[400212148,1767198644658,-500.65812564,0.00027397,5]
[400212150,1767198644667,-150.0,0.00027397,5]
[400212152,1767198644678,-150.58382148,0.00027397,5]
[400212154,1767198644687,-208.62,0.000274,7]
[400212156,1767198644696,-2000.0,0.00027548,7]
[400212158,1767198644706,-2000.0,0.00027557,7]
[400212160,1767198644714,-2000.0,0.00027566,7]
[400212162,1767198644724,-2000.0,0.00027575,7]
[400212164,1767198644733,-2000.0,0.00027583,7]
[400212166,1767198644743,-2000.0,0.00027592,7]
[400212168,1767198644752,-2000.0,0.00027601,7]
[400212170,1767198644761,-2000.0,0.0002761,7]
[400212172,1767198644771,-2000.0,0.00027619,7]
[400212174,1767198644780,-2000.0,0.00027627,7]
[400212176,1767198644789,-2000.0,0.00027636,7]
[400212178,1767198644798,-2000.0,0.00027645,7]
[400212180,1767198644809,-781.29563433,0.00027649,2]
[400212182,1767198644818,-2000.0,0.00027654,7]
[400212184,1767198644827,-2000.0,0.00027663,7]
[400212186,1767198644836,-150.0,0.00027667,30]
[400212188,1767198644845,-1323.99,0.00027671,2]
[400212190,1767198644855,-683.53,0.00027671,2]
[400212192,1767198644864,-2983.45,0.00027671,2]
[400212194,1767198644873,-1089.48,0.00027671,2]
[400212196,1767198644883,-9696.43,0.00027671,2]
[400212198,1767198644894,-2098.98,0.00027671,2]
[400212200,1767198644903,-2000.0,0.00027671,7]
[400212202,1767198644913,-2000.0,0.0002768,7]
[400212204,1767198644922,-2000.0,0.00027689,7]
[400212206,1767198644932,-2000.0,0.00027698,7]
[400212208,1767198644941,-2000.0,0.00027707,7]
[400212210,1767198644950,-2000.0,0.00027715,7]
[400212212,1767198644959,-2000.0,0.00027724,7]
[400212214,1767198644969,-2000.0,0.00027733,7]
[400212216,1767198644978,-2000.0,0.00027742,7]
[400212218,1767198644987,-2000.0,0.00027751,7]
[400212220,1767198644996,-2000.0,0.00027759,7]
[400212222,1767198645006,-2000.0,0.00027768,7]
[400212224,1767198645015,-2000.0,0.00027777,7]
[400212226,1767198645024,-2000.0,0.00027786,7]
[400212227,1767198645034,-2000.0,0.00027795,7]
[400212229,1767198645046,-2000.0,0.00027803,7]
[400212231,1767198645055,-2000.0,0.00027812,7]
[400212233,1767198645064,-2000.0,0.00027821,7]
[400212235,1767198645073,-2000.0,0.0002783,7]
[400212237,1767198645083,-2000.0,0.00027839,7]
[400212239,1767198645092,-2000.0,0.00027847,7]
[400212241,1767198645100,-2000.0,0.00027856,7]
[400212243,1767198645110,-2000.0,0.00027865,7]
[400212245,1767198645120,-2000.0,0.00027874,7]
[400212247,1767198645130,-2000.0,0.00027883,7]
[400212249,1767198645141,-2000.0,0.00027891,7]
[400212251,1767198645150,-2000.0,0.000279,7]
[400212253,1767198645159,-2000.0,0.00027909,7]
[400212255,1767198645169,-2000.0,0.00027918,7]
[400212257,1767198645178,-2000.0,0.00027927,7]
[400212259,1767198645187,-151.0,0.00027931,3]
[400212261,1767198645196,-2000.0,0.00027935,7]
[400212263,1767198645205,-2000.0,0.00027944,7]
[400212265,1767198645215,-1323.99,0.00027945,2]
[400212267,1767198645225,-683.53,0.00027945,2]
[400212269,1767198645234,-2983.45,0.00027945,2]
[400212271,1767198645243,-1089.48,0.00027945,2]
[400212273,1767198645253,-9696.43,0.00027945,2]
[400212275,1767198645262,-2098.98,0.00027945,2]
[400212277,1767198645271,-152.36606131,0.00027945,5]
[400212279,1767198645280,-2000.0,0.00027953,7]
[400212281,1767198645290,-2000.0,0.00027962,7]
[400212283,1767198645299,-2000.0,0.00027971,7]
[400212285,1767198645308,-507.3924693,0.00028,7]
[400212287,1767198645317,-1324.19,0.00028219,2]
[400212289,1767198645326,-683.57,0.00028219,2]
[400212291,1767198645336,-2983.47159298,0.00028219,2]
[400212293,1767198645344,-1089.71635778,0.00028219,2]
[400212295,1767198645354,-9696.53097059,0.00028219,2]
[400212297,1767198645363,-2099.08,0.00028219,2]
[400212299,1767198645372,-179.87408814,0.00028347,2]
[400212301,1767198645382,-1364.0,0.0002846,2]
[400212302,1767198645391,-627.0,0.0002846,2]
[400212305,1767198645401,-2156.0,0.0002846,2]
[400212307,1767198645410,-416.0,0.0002846,2]
[400212309,1767198645420,-416.0,0.0002846,2]
[400212311,1767198645430,-160.0,0.00028477,3]
[400212313,1767198645439,-183896.71318791,0.000285,7]
[400212315,1767198645449,-24425.5686256,0.00028601,7]
[400212316,1767198645458,-240.56,0.000287,2]
[400212318,1767198645468,-26860.43220075,0.0002876,2]
[400212320,1767198645476,-2028.77969745,0.0002876,5]
[400212322,1767198645490,-19129.54201656,0.0002876,2]
[400212324,1767198645499,-5770.30317135,0.0002876,30]
[400212326,1767198645508,-2804.79,0.00028767,2]
[400212328,1767198645518,-1041.66666667,0.000288,7]
[400212330,1767198645527,-172.34644729,0.000288,7]
[400212332,1767198645536,-2804.88,0.000288,2]
[400212334,1767198645546,-2804.88,0.000288,2]
[400212336,1767198645555,-2804.88,0.000289,2]
[400212338,1767198645565,-2804.88,0.000289,2]
[400212340,1767198645574,-160.0,0.00028973,4]
[400212342,1767198645583,-889.58046621,0.00029,2]
[400212344,1767198645593,-2406.6075983,0.00029,10]
[400212346,1767198645602,-2804.88,0.00029,2]
[400212348,1767198645611,-2804.88,0.000291,2]
[400212350,1767198645621,-2804.88,0.000291,2]
[400212352,1767198645630,-2804.88,0.000292,2]
[400212354,1767198645640,-2804.88,0.000292,2]
[400212356,1767198645649,-2804.88,0.000293,2]
[400212358,1767198645658,-2804.88,0.000294,2]
[400212360,1767198645669,-2804.88,0.000294,2]
[400212362,1767198645678,-160.0,0.00029469,5]
[400212364,1767198645687,-855.85292071,0.00029497,2]
[400212366,1767198645696,-422.6347024,0.000295,120]
[400212368,1767198645705,-2804.88,0.000295,2]
[400212370,1767198645715,-2804.88,0.000295,2]
[400212372,1767198645725,-150.31,0.00029512,30]
[400212374,1767198645734,-2804.88,0.000296,2]
[400212376,1767198645744,-2804.88,0.000296,2]
[400212378,1767198645753,-838.93219751,0.00029649,2]
[400212379,1767198645762,-2804.88,0.000297,2]
[400212382,1767198645771,-2804.88,0.000298,2]
[400212383,1767198645781,-2804.88,0.000298,2]
[400212385,1767198645790,-151.0,0.00029825,4]
[400212387,1767198645799,-2804.88,0.000299,2]
[400212389,1767198645808,-2804.88,0.000299,2]
[400212392,1767198645818,-160.0,0.00029965,6]
[400212394,1767198645828,-1200.20317365,0.0003,2]
[400212395,1767198645837,-10188.87347094,0.0003,7]
[400212397,1767198645848,-2804.88,0.0003,2]
[400212399,1767198645857,-1038.33,0.000301,14]
[400212401,1767198645867,-10762.96,0.000301,2]
[400212403,1767198645876,-5051.80608518,0.000301,120]
[400212405,1767198645885,-2804.88,0.000301,2]
[400212407,1767198645895,-2804.88,0.000301,2]
[400212409,1767198645904,-165.71,0.000302,7]
[400212411,1767198645913,-160.6,0.000302,7]
[400212413,1767198645924,-2804.88,0.000302,2]
[400212415,1767198645934,-2804.88,0.000302,2]
[400212417,1767198645943,-500.0,0.00030223,7]
[400212420,1767198645953,-2000.0,0.00030281,7]
[400212421,1767198645963,-2804.88,0.000303,2]
[400212423,1767198645972,-1100.0,0.00030317,7]
[400212425,1767198645981,-2804.88,0.000304,2]
[400212427,1767198645990,-2804.88,0.000304,2]
[400212429,1767198645999,-1100.0,0.00030424,7]
[400212431,1767198646008,-160.0,0.00030461,7]
[400212433,1767198646017,-2804.88,0.000305,2]
[400212436,1767198646027,-2804.88,0.000305,2]
[400212437,1767198646036,-819.5,0.00030576,30]
[400212439,1767198646045,-19069.0,0.00030576,30]
[400212441,1767198646053,-1226.0,0.00030576,30]
[400212443,1767198646063,-1100.0,0.00030592,7]
[400212445,1767198646072,-500.0,0.00030594,7]